Cogmind - Beta 13 @@@ ROGUE MODE // 2024.06.13 @ 15:08:19 Player: OiledGladiator Result: Destroyed by G-47 Trooper with Particle Gun Performance ------------- Evolutions (0) 0 Regions Visited (1) 200 Robots Destroyed (10) 50 Value Destroyed (244) 244 Prototype IDs (0) 0 Alien Tech Used (0) 0 Bonus (0) 0 TOTAL SCORE: 494 Bonus ------- None Cogmind --------- Core Integrity 0/250 Matter 266/300 Energy 100/100 System Corruption 0% Temperature Cool (9) Movement Treading (160) Location -10/Materials Parts ------- > --- POWER (1) -------- (None) > --- PROPULSION (2) --- Light Treads Aluminum Leg > --- UTILITY (2) ------ Medium Storage Unit Terrain Scan Processor > --- WEAPON (2) ------- Light Assault Rifle Grenade Launcher > --- INVENTORY (10) --- Wheel Wheel Wheel Flight Unit Small Storage Unit Small Laser Assault Rifle Peak State ------------ > --- POWER ------------ Light Ion Engine > --- PROPULSION ------- Aluminum Leg Aluminum Leg > --- UTILITY ---------- Small Storage Unit Medium Storage Unit > --- WEAPON ----------- Small Laser Assault Rifle > --- INVENTORY -------- Wheel Wheel Wheel Assault Rifle Light Assault Rifle [Rating: 7] Favorites ----------- Power Light Ion Engine Engine Light Ion Engine Propulsion Aluminum Leg Treads Light Treads Leg Aluminum Leg Wheel Wheel Hover Unit Hover Unit Utility Medium Storage Unit Storage Medium Storage Unit Processor Terrain Scan Processor Weapon Assault Rifle Energy Gun Small Laser Ballistic Gun Assault Rifle Launcher Grenade Launcher Build | -11 -10 ------- Run | Yrd Mat Slots Evolved . | . . Power . | . . Propulsion . | . . Utility . | . . Weapon . | . . Parts Attached 21 | 6 15 Power 2 | 1 1 Engine 2 | 1 1 Core . | . . Reactor . | . . Propulsion 8 | 2 6 Treads 1 | . 1 Leg 5 | 2 3 Wheel 1 | . 1 Hover 1 | . 1 Flight . | . . Utility 6 | . 6 Device . | . . Storage 5 | . 5 Processor 1 | . 1 Hackware . | . . Protection . | . . Artifact . | . . Weapon 5 | 3 2 Energy Gun 1 | 1 . Energy Cannon . | . . Ballistic Gun 3 | 2 1 Ballistic Cannon . | . . Launcher 1 | . 1 Special Weapon . | . . Impact Weapon . | . . Slashing Weapon . | . . Piercing Weapon . | . . Special Melee Weapon . | . . Unidentified Prototypes . | . . Parts Lost 6 | . 6 Power 2 | . 2 Propulsion 3 | . 3 Utility . | . . Weapon 1 | . 1 Highest Loss Streak 4 | . 4 To Critical Strikes . | . . Average Slot Usage (%) 84 | . 84 Engine 11 | . 11 Leg 14 | . 14 Hover 5 | . 5 Storage 23 | . 23 Energy Gun 4 | . 4 Ballistic Gun 17 | . 17 Launcher 5 | . 5 Naked Turns . | . . Heaviest Build 36 | 7 36 Greatest Support 20 | 20 20 Greatest Overweight (x) 6 | . 6 Average Overweight (x) 1 | . 2 Largest Inventory Capacity 15 | 5 15 Average Capacity 8 | 5 9 Most Carried 10 | 5 10 Average Carried 6 | 4 7 Final Capacity 10 | 5 10 Final Carried 7 | 5 7 Class Distribution -------------------- 100% | Mutant Dominant Class ---------------- Mutant | -10/Materials Resources | -11 -10 ----------- Run | Yrd Mat Matter Collected 485 | 288 197 Remotely . | . . Salvage Created 276 | 47 229 Parts 22 | 2 20 Haulers Intercepted . | . . Recyclers Shooed . | . . Parts Field Recycled . | . . Retrieved Matter . | . . Parts Self-Destructed . | . . Prevented . | . . Kills | -11 -10 ------- Run | Yrd Mat Combat Hostiles Destroyed 6 | 1 5 Guns 3 | 1 2 AOE 3 | . 3 Classes Destroyed 4 | 2 2 Worker 1 | 1 . Builder 2 | . 2 Watcher 1 | . 1 Grunt 6 | 1 5 Best Kill Streak 3 | 1 3 Combat Bots Only 2 | 1 2 Max Kills in Single Turn 3 | 1 3 Gunslinging . | . . Exploded 2 | . 2 Melee . | . . Uniques/NPCs Destroyed . | . . Combat | -11 -10 -------- Run | Yrd Mat Hostile Shots Fired 104 | 13 91 Missed 29 | 5 24 Damage Taken 937 | 88 849 Core 253 | 11 242 Absorbed by Shields . | . . Core Remaining (%) 95 | 95 . Volleys Fired 29 | 9 20 Largest 2 | 2 2 Hottest 60 | 40 60 Shots Fired 52 | 18 34 Gun 49 | 18 31 Cannon . | . . Launcher 3 | . 3 Special . | . . Kinetic 39 | 18 21 Thermal 10 | . 10 Explosive 3 | . 3 Electromagnetic . | . . Robot Hit Streak 8 | 5 8 Robot Miss Streak 3 | 3 2 Penetration Max . | . . Secondary Targets . | . . Shots Hit Robots 35 | 11 24 Core Hits 17 | 3 14 Critical Kills . | . . Critical Parts Destroyed . | . . Critical Strikes . | . . Melee Attacks . | . . Impact . | . . Slashing . | . . Piercing . | . . Sneak Attacks . | . . Combat Hostiles . | . . Follow-up Attacks . | . . Damage Inflicted 658 | 144 514 Guns 407 | 144 263 Cannons . | . . Explosions 251 | . 251 Melee . | . . Ramming . | . . Kinetic 330 | 144 186 Thermal 77 | . 77 Explosive 251 | . 251 Electromagnetic . | . . Impact . | . . Slashing . | . . Piercing . | . . Highest Corruption . | . . Average Corruption . | . . Corruption Purged . | . . Corruption Blocked . | . . Overload Shots . | . . Overflow Damage 18 | . 18 Projectiles . | . . Explosions 18 | . 18 Melee . | . . Knockbacks . | . . Impact . | . . Kinetic . | . . Secondary . | . . Self-Inflicted Damage 39 | . 39 Shots 2 | . 2 Rammed . | . . Targets Rammed . | . . Kicked . | . . Crushed . | . . Highest Temperature 81 | . 81 Average Temperature 31 | . 31 Received Heat Transfer 516 | 48 468 Siege Activations . | . . Robots Corrupted . | . . Combat Hostiles . | . . Parts Fried . | . . Impact Corruptions . | . . Robots Melted . | . . Combat Hostiles . | . . Parts Melted . | . . Heat Transferred 175 | . 175 Parts Sabotaged . | . . Parts Stolen . | . . Parts Stripped . | . . Power Chain Reactions . | . . Alert | -11 -10 ------- Run | Yrd Mat Peak Influence 73 | 25 73 Initial . | . . Average 17 | 14 18 Maximum Alert Level . | . . Low Security (%) 100 | 100 100 Level 1 . | . . Level 2 . | . . Level 3 . | . . Level 4 . | . . Level 5 . | . . High Security . | . . Max Security . | . . Squads Dispatched 2 | . 2 Investigation 2 | . 2 Extermination . | . . Reinforcement . | . . Assault . | . . Garrison . | . . Intercept . | . . Searches Triggered . | . . Construction Impeded . | . . Haulers Reinforced . | . . Active Scanning Responses . | . . Cargo Convoy Interrupts . | . . Stealth | -11 -10 --------- Run | Yrd Mat Distress Signals . | . . Communications Jammed . | . . Distress Signals . | . . Times Spotted 13 | 1 12 Peak Tracking Total 7 | 1 7 Tactical Retreats . | . . Traps | -11 -10 ------- Run | Yrd Mat Traps Triggered . | . . Indirectly . | . . Trap Hack Attempts . | . . Triggered . | . . Disarmed . | . . Reprogrammed . | . . Reused . | . . Traps Extracted . | . . Installed . | . . Triggered . | . . Machines | -11 -10 ---------- Run | Yrd Mat Machines Disabled . | . . Max in Single Turn . | . . Machines Repaired . | . . Machines Dismantled . | . . Machines Sabotaged . | . . Overloaded Fab Kills . | . . Hacking | -11 -10 --------- Run | Yrd Mat Machines Accessed 3 | . 3 Terminals 2 | . 2 Fabricators . | . . Repair Stations . | . . Recycling Units 1 | . 1 Scanalyzers . | . . Garrison Access . | . . Total Hacks 8 | . 8 Successful 6 | . 6 Failed 2 | . 2 Catastrophic 1 | . 1 Database Lockouts . | . . Manual 1 | . 1 Terminals 6 | . 6 Fabricators . | . . Repair Stations . | . . Recycling Units 2 | . 2 Scanalyzers . | . . Garrison Access . | . . Terminal Hacks 5 | . 5 Record 3 | . 3 Alert Level 1 | . 1 Investigation Status 1 | . 1 Fabricator Hacks . | . . Repair Station Hacks . | . . Recycling Unit Hacks 1 | . 1 Recycle Component 1 | . 1 Scanalyzer . | . . Garrison Access Hacks . | . . Unauthorized Hacks . | . . Terminals . | . . Fabricators . | . . Repair Stations . | . . Recycling Units . | . . Scanalyzers . | . . Garrison Access . | . . Data Cores Recovered . | . . Used . | . . Hacking Detections 3 | . 3 Full Trace Events 2 | . 2 Feedback Events . | . . Feedback Blocked . | . . Robot Schematics Acquired . | . . Robots Built . | . . Authchips . | . . Time . | . . Total Robot Build Rating . | . . Part Schematics Acquired . | . . Parts Built . | . . Authchips . | . . Time . | . . Total Part Build Rating . | . . Parts Repaired . | . . Time . | . . Parts Recycled 1 | . 1 Recycled Matter . | . . Retrieved Matter . | . . Retrieved Components . | . . Parts Scanalyzed . | . . Part Schematics Acquired . | . . Parts Damaged . | . . Bothacking | -11 -10 ------------ Run | Yrd Mat Used RIF Installer . | . . Robots Hacked . | . . Non-combat . | . . Combat . | . . Robot Hacks Applied . | . . Relay Couplers Released . | . . Fabnet Peak Effective % . | . . Robots Rewired . | . . Allies Hacked . | . . Hacks Repelled . | . . Allies | -11 -10 -------- Run | Yrd Mat Total Allies . | . . Largest Group . | . . Highest-Rated Group . | . . Highest-Rated Ally . | . . Total Orders . | . . Ally Attacks . | . . Total Damage . | . . Kills . | . . Allies Corrupted . | . . Allies Melted . | . . Intel | -11 -10 ------- Run | Yrd Mat Robot Analysis Total . | . . Derelict Logs Recovered . | . . Drone Launches . | . . Drone Recoveries . | . . Exploration | -11 -10 ------------- Run | Yrd Mat Turns Passed 2403 | 493 1910 Spaces Moved 400 | 189 211 Core 34 | 22 12 Treads 28 | . 28 Legs 232 | 167 65 Wheels 1 | . 1 Hover 105 | . 105 Flight . | . . Fastest Speed 50 | 50 80 Average Speed 169 | 111 220 Slowest Speed 350 | 120 350 Overloaded Moves . | . . Propulsion Burnouts . | . . Robots Hopped . | . . Cave-ins Triggered . | . . Exploration Rate (%) 24 | 16 32 Regions Visited 1 Branch Regions . Pre-discovered Areas . | . . Known Exits Taken . | . . Unknown Exits Taken 1 | 1 . Scrap Searched . | . . Spaces Dug . | . . Terrain Destroyed 21 | . 21 Melee . | . . Projectile . | . . AOE 21 | . 21 Terrain Rammed . | . . Walls Destroyed . | . . Machines Disabled . | . . Actions | -11 -10 --------- Run | Yrd Mat Total 2074 | 452 1622 Wait 1595 | 239 1356 Move 399 | 188 211 Hop . | . . Pick Up 24 | 10 14 Fast Attach 1 | . 1 Attach 14 | 5 9 Detach 1 | . 1 Swap 6 | 1 5 Drop 5 | . 5 Fire 29 | 9 20 Melee . | . . Ram . | . . Kick . | . . Crush . | . . Escape Stasis . | . . Rewire . | . . Trap . | . . Miscellaneous . | . . Route ------- -11/Scrapyard -10/Materials (discovered 2 exits: [*Mat] / [*Min]) History --------- Turn | Location | Event 2 | -11/Scrapyard | Met Revision 17 84 | -11/Scrapyard | Discovered new exit (range 8) 494 | -11/Scrapyard | Entered Materials 495 | -10/Materials | Build established: Mutant 1108 | -10/Materials | Core integrity fell below 50% 1130 | -10/Materials | Lost 4 parts (1p2n1w) 1975 | -10/Materials | Discovered new exit (range 9) 2128 | -10/Materials | Core integrity fell below 20% 2391 | -10/Materials | Discovered new exit (range 12) 2404 | -10/Materials | Destroyed by G-47 Trooper with Particle Gun Last Messages --------------- especially those with strict weight restrictions such as hovering and flight-based models. >>Query(Fabricator) Self-contained construction unit capable of building almost any component or robot for which detailed schematics are provided. Initiating a new build process requires an [Authchip], but an internal generator provides all the energy required for fabrication, and matter input is drawn from the local network as per fabricator specification, while some schematics may call for preassembled subcomponents. Advanced fabricators can complete complex tasks more quickly. ALERT: Suspicious activity at Terminal M006. Dispatching Investigation squad. Terminal unresponsive. EXIT=FOUND [Achievement: First Step to Greatness] Map ----- +----------------------------------------------------+ | | | ?????????????????????????????????????????????????? | | ?????????????????????????????????????????????????? | | ?????????????????????????????????????????????????? | | ?????????????????????????????????????????????????? | | ?????????????????????????????????????????????????? | | ?????????????????????????????????????????????????? | | ?????????????????????????????????????????????????? | | ?????????????????????????????????????????????????? | | ####?????????????????????????????????????????????? | | """##????????????????????????????????????????????? | | !!!"##??????????????????###??????????????????????? | | ""#?????????????????? ??????????????????????? | | #?????????????????# < ??????????????????????? | | < #??##########?????# ??????????????????????? | | #??# #?????# ??????????????????????? | | #??# """#?????? ??????????????????????? | | ##### """#?????? ??????????????????????? | | ### # ! """#?????? ??????????????????????? | | ###### #?????? #??????????????????????? | | =# """#?????? #??????????????????????? | | + """#?????? #??????????????????????? | | # """#??????#g#??????????????????????? | | ##+## # ######## #??????????????????????? | | # ###/###### ## #??????????????????????? | | + ##@#??????????????????????? | | # T g ""???????????????????? | | # #### ""???????????????????? | | ######+####### #??? ?????????????????? | | #????? ????###+###???? ""#???????????????? | | #??????* ??????????????? T"????????????????? | | #??????? #??????????????? ""????????????????? | | #??????? #??????????????? #???????????????? | | ###+#####???? #????????????????###???????????????? | | + ??#??????????????????????????????????? | | #########????????????????????????????????????????? | | ?????????????????????????????????????????????????? | | ?########????????????????????????????????????????? | | ## #????????????????????????????????????????? | | ## """ #????????????????????????????????????????? | | ## """ #????????????????????????????????????????? | | ## """ #????????????????????????????????????????? | | ## #????????????????????????????????????????? | | ## #????????????????????????????????????????? | | ####+####????????????????????????????????????????? | | #??# #???????????????????????????????????????????? | | #??# #???????????????????????????????????????????? | | #?## ##??????????????????????????????????????????? | | ### #####??????????????????????????????????????? | | #??????????????????????????????????????? | +----------------------------------------------------+ Best States ------------- Heat Dissipation 25 Energy Generation 10 Energy Capacity 250 Matter Stores 284 Matter Capacity 300 Sight Range 16 Terrain Scan Density 85 Evasion (%) 55 Recoil Reduction 1 Item Schematics ----------------- None Robot Schematics ------------------ None Fabricated ------------ Nothing Alien Tech Used ----------------- None Achievements -------------- First Step to Greatness One Hack Too Far Challenges ------------ None Game ------ Seed EnhancedVisualMachine Manual? 0 Play Time 00:25:38 Cumulative 0.3 hours Start 2024.06.13 @ 12:23:57 End 2024.06.13 @ 15:08:19 Sessions 2 Manual Loads 0 Difficulty Rogue Special Mode None Game No. 1 Rogue 1 Adventurer 0 Explorer 0 Win Type - Total 0 Types 0/0/0/0/0/0/0/0/0 Lore% 0 Gallery% 1 Achievement% 0 Wizard Run 0 Options --------- Layout 1 ASCII 0 Keyboard 0 Movement Numpad Keybinds 0 Fullscreen 1 Font 16/SmallcapsGlow Map View 50x40 Zoom Use 0% Tactical HUD 0 Map Filters NONE Filters NONE Steam SD RUN: d42891db-9e7c-41b1-818e-d5ebe3068f79